fUSD/lending_fUSD_20241123
["ID","MTS","AMOUNT","RATE_DAILY","PERIOD"]
[343071761,1732325433272,-1575.96,0.00065753,120]
[343071762,1732325433282,-1575.96,0.00065753,120]
[343071763,1732325433293,-1575.96,0.00065753,120]
[343071764,1732325433303,-1575.96,0.00065753,120]
[343071765,1732325433313,-368.89843184,0.00065753,120]
[343071766,1732325433323,-782.02270459,0.00065753,120]
[343071767,1732325433334,-500.0,0.00065753,120]
[343071768,1732325433344,-500.0,0.00065753,120]
[343071769,1732325433354,-500.0,0.00065753,120]
[343071770,1732325433363,-500.0,0.00065753,120]
[343071771,1732325433373,-500.0,0.00065753,120]
[343071772,1732325433383,-500.0,0.00065753,120]
[343071773,1732325433393,-412.77599297,0.00065753,120]
[343071774,1732325433402,-355.88827343,0.00065753,120]
[343071775,1732325433412,-378.22453767,0.00065753,120]
[343071776,1732325433422,-500.0,0.00065753,120]
[343071777,1732325433433,-500.0,0.00065753,120]
[343071778,1732325433443,-500.0,0.00065753,120]
[343071779,1732325433457,-500.0,0.00065753,120]
[343071780,1732325433467,-189.24222092,0.00065753,120]
[343071781,1732325433477,-500.0,0.00065753,120]
[343071782,1732325433488,-500.0,0.00065753,120]
[343071783,1732325433498,-491.06285755,0.00065753,120]
[343071784,1732325433508,-500.0,0.00065753,120]
[343071785,1732325433519,-500.0,0.00065753,120]
[343071786,1732325433528,-500.0,0.00065753,120]
[343071787,1732325433538,-500.0,0.00065753,120]
[343071788,1732325433548,-415.76061774,0.00065753,120]
[343071789,1732325433558,-500.0,0.00065753,120]
[343071790,1732325433568,-500.0,0.00065753,120]
[343071791,1732325433578,-500.0,0.00065753,120]
[343071792,1732325433588,-164.47,0.000659,2]
[343071793,1732325433597,-500.0,0.0006593,120]
[343071794,1732325433607,-1575.96,0.00065997,120]
[343071795,1732325433617,-275.03596438,0.00065999,120]
[343071796,1732325433625,-500.0,0.00065999,120]
[343071797,1732325433635,-1575.96,0.00065999,120]
[343071798,1732325433645,-300.0,0.00065999,30]
[343071799,1732325433654,-302.34,0.0006633,120]
[343071800,1732325433664,-150.65,0.00066389,120]
[343071801,1732325433674,-500.0,0.00066452,120]
[343071802,1732325433684,-700.0,0.00066494,120]
[343071803,1732325433694,-700.0,0.00066524,120]
[343071804,1732325433707,-500.0,0.00066535,2]
[343071805,1732325433716,-250.0,0.0006666,120]
[343071806,1732325433725,-637.80341113,0.00066702,120]
[343071807,1732325433735,-168.91,0.0006672,2]
[343071808,1732325433745,-248.0,0.0006676,2]
[343071809,1732325433755,-500.0,0.00066899,120]
[343071810,1732325433764,-500.0,0.00066899,120]
[343071811,1732325433774,-523.76878522,0.00066899,120]
[343071812,1732325433783,-540.10218051,0.00066899,120]
[343071813,1732325433793,-500.0,0.00066899,120]
[343071814,1732325433802,-61193.90065638,0.000669,120]
[343071815,1732325433811,-500.0,0.00066936,120]
[343071816,1732325433820,-784.86,0.00067074,2]
[343071817,1732325433830,-200.0,0.0006708,2]
[343071818,1732325433840,-250.0,0.00067151,120]
[343071819,1732325433850,-700.0,0.00067174,120]
[343071820,1732325433860,-1000.0,0.00067224,120]
[343071821,1732325433870,-500.0,0.00067224,2]
[343071822,1732325433879,-214.18,0.00067224,30]
[343071823,1732325433889,-164.36,0.00067224,120]
[343071824,1732325433899,-500.0,0.0006724,120]
[343071825,1732325433908,-153.23,0.00067248,120]
[343071826,1732325433918,-200.0,0.00067446,30]
[343071827,1732325433927,-1000.0,0.00067694,120]
[343071828,1732325433937,-2264.19685246,0.000678,120]
[343071829,1732325433946,-200.0,0.00067818,2]
[343071830,1732325433957,-158.83,0.00067875,120]
[343071831,1732325433968,-500.0,0.00067981,120]
[343071832,1732325433982,-492.36880116,0.00068199,120]
[343071833,1732325433992,-700.0,0.00068269,120]
[343071834,1732325434002,-300.0,0.00068478,60]
[343071835,1732325434011,-150.0,0.00068478,60]
[343071836,1732325434022,-1000.0,0.00068493,120]
[343071837,1732325434032,-300.0,0.00068493,120]
[343071838,1732325434041,-200.0,0.000685,30]
[343071839,1732325434050,-500.0,0.000685,30]
[343071840,1732325434060,-150.65,0.00068635,120]
[343071841,1732325434071,-528.63665745,0.00068652,120]
[343071842,1732325434080,-1000.0,0.00068872,120]
[343071843,1732325434090,-1575.96,0.00068999,120]
[343071844,1732325434099,-300.0,0.00068999,60]
[343071845,1732325434108,-784.86,0.00069338,2]
[343071846,1732325434117,-500.0,0.00069357,120]
[343071847,1732325434126,-150.11231,0.00069498,120]
[343071848,1732325434135,-153.22,0.000695,69]
[343071849,1732325434145,-153.22,0.000695,69]
[343071850,1732325434155,-153.22,0.000695,69]
[343071851,1732325434164,-153.22,0.000695,69]
[343071852,1732325434174,-153.22,0.000695,69]
[343071853,1732325434184,-153.22,0.000695,69]
[343071854,1732325434193,-153.22,0.000695,69]
[343071855,1732325434204,-153.22,0.000695,69]
[343071856,1732325434214,-153.22,0.000695,69]
[343071857,1732325434223,-153.22,0.000695,69]
[343071858,1732325434233,-153.22,0.000695,69]
[343071859,1732325434244,-153.22,0.000695,69]
[343071860,1732325434254,-3342.458343,0.00069695,15]
[343071861,1732325434264,-510.02877424,0.0007,30]
[343071862,1732325434274,-2000.0,0.0007,120]
[343071863,1732325434284,-700.0,0.00070034,120]
[343071864,1732325434294,-32247.62409067,0.0007015,2]
[343071865,1732325434303,-700.0,0.00070495,120]
[343071866,1732325434314,-500.0,0.00070654,120]
[343071867,1732325434323,-500.0,0.00070747,120]
[343071868,1732325434333,-150.65,0.00070882,120]
[343071869,1732325434342,-700.0,0.00071359,120]
[343071870,1732325434352,-500.0,0.00071376,120]
[343071871,1732325434362,-500.0,0.00071376,120]
[343071872,1732325434372,-500.0,0.00071376,120]
[343071873,1732325434382,-150.0,0.00071377,60]
[343071874,1732325434392,-302.34,0.00071377,120]
[343071875,1732325434402,-157.11231,0.00071498,120]
[343071876,1732325434412,-250.0,0.00071518,120]
[343071877,1732325434422,-150.0,0.00071549,30]
[343071878,1732325434431,-784.86,0.00071601,2]
[343071879,1732325434442,-150.0,0.00071695,2]
[343071880,1732325434455,-185.63,0.000718,120]
[343071881,1732325434465,-700.0,0.00072037,120]
[343071882,1732325434474,-158.83,0.00072784,120]
[343071883,1732325434485,-1000.0,0.000729,14]
[343071884,1732325434495,-1000.0,0.000729,14]
[343071885,1732325434505,-1000.0,0.000729,14]
[343071886,1732325434515,-500.0,0.00072903,120]
[343071887,1732325434525,-150.65,0.00073128,120]
[343071888,1732325434535,-500.0,0.00073253,120]
[343071889,1732325434544,-3000.0,0.0007326,120]
[343071890,1732325434555,-500.0,0.0007343,120]
[343071891,1732325434565,-150.11231,0.00073498,120]
[343071892,1732325434574,-2110.0,0.000735,30]
[343071893,1732325434584,-500.0,0.000738,2]
[343071894,1732325434593,-3931.1536,0.000738,2]
[343071895,1732325434602,-151.82,0.00073855,120]
[343071896,1732325434612,-784.86,0.00073865,2]
[343071897,1732325434622,-936.23961253,0.00073867,120]
[343071898,1732325434631,-151.99147382,0.00073886,60]
[343071899,1732325434640,-151.82,0.0007389,120]
[343071900,1732325434650,-821.4512,0.000739,2]
[343071901,1732325434660,-70290.7559,0.000739,2]
[343071902,1732325434669,-11345.781,0.000739,2]
[343071903,1732325434678,-300.0,0.000739,26]
[343071904,1732325434688,-1575.96,0.00073999,120]
[343071905,1732325434697,-10000.0,0.00074,120]
[343071906,1732325434710,-169.0,0.00074,120]
[343071907,1732325434719,-2116.59,0.00074,30]
[343071908,1732325434729,-2000.0,0.00074,120]
[343071909,1732325434738,-500.0,0.00074,120]
[343071910,1732325434746,-500.0,0.00074025,120]
[343071911,1732325434754,-500.0,0.00074025,120]
[343071912,1732325434763,-156.959146,0.00074028,7]
[343071913,1732325434772,-4286.0477303,0.00074028,7]
[343071914,1732325434781,-8074.2125243,0.00074028,7]
[343071915,1732325434791,-711.4293707,0.00074028,7]
[343071916,1732325434799,-1151.1812017,0.00074028,7]
[343071917,1732325434809,-151.82,0.00074069,120]
[343071918,1732325434818,-423.2541323,0.00074078,120]
[343071919,1732325434828,-500.0,0.00074078,120]
[343071920,1732325434838,-500.0,0.00074078,120]
[343071921,1732325434847,-3617.3014,0.00074079,2]
[343071922,1732325434856,-29813.2442,0.00074079,2]
[343071923,1732325434866,-19737.2399,0.00074079,2]
[343071924,1732325434874,-1584.5731,0.00074079,2]
[343071925,1732325434883,-268.18,0.0007423,2]
[343071926,1732325434893,-165.78,0.00074276,2]
[343071927,1732325434902,-157.11231,0.00074498,120]
[343071928,1732325434911,-9999.99999999,0.000745,120]
[343071929,1732325434921,-500.0,0.00074609,120]
[343071930,1732325434930,-152.0,0.0007467,7]
[343071931,1732325434939,-500.0,0.00074681,120]
[343071932,1732325434949,-500.0,0.00074932,120]
[343071933,1732325434962,-1000.0,0.00074999,120]
[343071934,1732325434973,-500.0,0.00074999,120]
[343071935,1732325434982,-500.0,0.00074999,120]
[343071936,1732325434994,-500.0,0.00074999,120]
[343071937,1732325435004,-17590.19,0.00075,120]
[343071938,1732325435013,-467.9850734,0.00075,30]
[343071939,1732325435023,-1350.0,0.00075,2]
[343071940,1732325435032,-1205.38502258,0.00075,2]
[343071941,1732325435041,-4867.21582676,0.00075144,15]
[343071942,1732325435050,-1306.64,0.00075357,120]
[343071943,1732325435060,-150.65,0.00075374,120]
[343071944,1732325435070,-1000.0,0.00075627,120]
[343071945,1732325435080,-3000.0,0.0007576,120]
[343071946,1732325435088,-153.23,0.00075965,120]
[343071947,1732325435097,-1068.1,0.00075996,120]
[343071948,1732325435107,-500.0,0.00075996,120]
[343071949,1732325435117,-500.0,0.00075996,120]
[343071950,1732325435127,-500.0,0.00075996,120]
[343071951,1732325435137,-500.0,0.00075996,120]
[343071952,1732325435146,-500.0,0.00075996,120]
[343071953,1732325435156,-500.0,0.00075996,120]
[343071954,1732325435166,-500.0,0.00075996,120]
[343071955,1732325435176,-500.0,0.00075996,120]
[343071956,1732325435186,-500.0,0.00075996,120]
[343071957,1732325435196,-500.0,0.00075996,120]
[343071958,1732325435209,-500.0,0.00075996,120]
[343071959,1732325435219,-500.0,0.00075996,120]
[343071960,1732325435230,-500.0,0.00075996,120]
[343071961,1732325435241,-784.86,0.00076129,2]
[343071962,1732325435251,-1000.0,0.00076156,120]
[343071963,1732325435260,-151.82,0.00076414,120]
[343071964,1732325435270,-302.34,0.00076424,120]
[343071965,1732325435280,-150.11231,0.00076498,120]
[343071966,1732325435291,-268.18,0.0007653,2]
[343071967,1732325435301,-700.0,0.00076624,120]
[343071968,1732325435311,-500.0,0.00076844,120]
[343071969,1732325435320,-500.0,0.00076844,120]
[343071970,1732325435329,-337.41800436,0.00076844,120]
[343071971,1732325435339,-164.45,0.00077055,120]
[343071972,1732325435349,-166.51,0.00077055,120]
[343071973,1732325435358,-700.0,0.00077153,120]
[343071974,1732325435367,-700.0,0.00077195,120]
[343071975,1732325435378,-157.11231,0.00077498,120]
[343071976,1732325435387,-151.82,0.00077514,120]
[343071977,1732325435395,-78337.8631,0.00077524,2]
[343071978,1732325435405,-150.65,0.00077621,120]
[343071979,1732325435415,-158.83,0.00077694,120]
[343071980,1732325435425,-500.0,0.00077785,120]
[343071981,1732325435435,-168.91,0.0007784,2]
[343071982,1732325435446,-1038.81767871,0.00078,120]
[343071983,1732325435459,-700.0,0.00078067,120]
[343071984,1732325435471,-249.00776,0.00078088,30]
[343071985,1732325435480,-3000.0,0.0007826,120]
[343071986,1732325435489,-249.00776,0.00078288,30]
[343071987,1732325435498,-784.86,0.00078393,2]
[343071988,1732325435508,-249.00776,0.00078488,30]
[343071989,1732325435518,-249.00776,0.00078688,30]
[343071990,1732325435528,-500.0,0.00078716,120]
[343071991,1732325435537,-268.18,0.0007883,2]
[343071992,1732325435546,-168.33765,0.000789,60]
[343071993,1732325435556,-700.0,0.00078988,120]
[343071994,1732325435566,-10000.0,0.00079,120]
[343071995,1732325435576,-249.00776,0.00079088,30]
[343071996,1732325435586,-152.0,0.00079199,8]
[343071997,1732325435596,-158.73798036,0.00079199,5]
[343071998,1732325435720,-153.22,0.000792,75]
[343071999,1732325435730,-153.22,0.000792,75]
[343072000,1732325435739,-153.22,0.000792,75]
[343072001,1732325435749,-153.22,0.000792,75]
[343072002,1732325435758,-153.22,0.000792,75]
[343072003,1732325435768,-153.22,0.000792,75]
[343072004,1732325435778,-153.22,0.000792,75]
[343072005,1732325435787,-153.22,0.000792,75]
[343072006,1732325435797,-153.22,0.000792,75]
[343072007,1732325435807,-153.22,0.000792,75]
[343072008,1732325435817,-153.22,0.000792,75]
[343072009,1732325435827,-153.22,0.000792,75]
[343072010,1732325435837,-170.776,0.00079206,120]
[343072011,1732325435846,-500.0,0.00079248,120]
[343072012,1732325435856,-10000.0,0.00079268,120]
[343072013,1732325435865,-249.00776,0.00079288,30]
[343072014,1732325435876,-150.11231,0.00079298,120]
[343072015,1732325435886,-249.00776,0.00079488,30]
[343072016,1732325435895,-157.11231,0.00079498,120]
[343072017,1732325435906,-169.54102232,0.000795,120]
[343072018,1732325435916,-500.0,0.000795,120]
[343072019,1732325435926,-10000.0,0.000796,120]
[343072020,1732325435936,-249.00776,0.00079688,30]
[343072021,1732325435946,-3342.458343,0.00079689,15]
[343072022,1732325435961,-5808.85583484,0.000798,120]
[343072023,1732325435975,-600.0,0.000798,29]
[343072024,1732325435985,-150.65,0.00079867,120]
[343072025,1732325435995,-151.82,0.00079889,120]
[343072026,1732325436005,-500.0,0.00079898,120]
[343072027,1732325436016,-500.0,0.00079898,120]
[343072028,1732325436026,-1009.8197,0.00079899,2]
[343072029,1732325436036,-5086.2058,0.00079899,2]
[343072030,1732325436047,-900.0,0.000799,29]
[343072031,1732325436057,-500.0,0.00079942,120]
[343072032,1732325436067,-151.82,0.00079987,120]
[343072033,1732325436077,-151.82,0.00079987,120]
[343072034,1732325436087,-151.82,0.00079987,120]
[343072035,1732325436097,-168.56351298,0.00079988,120]
[343072036,1732325436108,-151.82,0.0007999,120]
[343072037,1732325436118,-151.82,0.0007999,120]
[343072038,1732325436128,-151.82,0.0007999,120]
[343072039,1732325436137,-151.82,0.0007999,120]
[343072040,1732325436147,-151.82,0.0007999,120]
[343072041,1732325436158,-151.82,0.0007999,120]
[343072042,1732325436168,-151.82,0.0007999,120]
[343072043,1732325436179,-151.82,0.0007999,120]
[343072044,1732325436188,-151.82,0.0007999,120]
[343072045,1732325436198,-454.65504732,0.00079995,120]
[343072046,1732325436211,-500.0,0.00079995,120]
[343072047,1732325436221,-500.0,0.00079996,120]
[343072048,1732325436230,-500.0,0.00079996,120]
[343072049,1732325436239,-500.0,0.00079996,120]
[343072050,1732325436249,-1068.1,0.00079996,120]
[343072051,1732325436259,-500.0,0.00079996,120]
[343072052,1732325436269,-500.0,0.00079996,120]
[343072053,1732325436280,-500.0,0.00079996,120]
[343072054,1732325436290,-1000.0,0.00079996,120]
[343072055,1732325436301,-500.0,0.00079996,120]
[343072056,1732325436311,-501.06272876,0.00079996,120]
[343072057,1732325436321,-500.0,0.00079996,120]
[343072058,1732325436331,-276.22563611,0.00079996,120]
[343072059,1732325436341,-500.0,0.00079996,120]
[343072060,1732325436350,-566.7705064,0.00079996,120]
[343072061,1732325436359,-224.94044969,0.00079996,120]
[343072062,1732325436370,-201931.14843964,0.00079997,120]
[343072063,1732325436379,-500.0,0.00079999,120]
[343072064,1732325436389,-500.0,0.00079999,120]
[343072066,1732325436399,-500.0,0.00079999,120]
[343072068,1732325436409,-289.96211416,0.00079999,120]
[343072070,1732325436419,-1068.1,0.00079999,120]
[343072072,1732325436428,-1068.1,0.00079999,120]
[343072074,1732325436438,-1575.96,0.00079999,120]
[343072078,1732325436448,-1575.96,0.00079999,120]
[343072080,1732325436462,-500.0,0.00079999,120]
[343072082,1732325436472,-516.88972451,0.00079999,120]
[343072083,1732325436482,-500.0,0.00079999,120]
[343072084,1732325436491,-500.0,0.00079999,120]
[343072085,1732325436502,-1000.0,0.00079999,120]
[343072086,1732325436512,-1000.0,0.00079999,120]
[343072087,1732325436522,-500.0,0.00079999,120]
[343072088,1732325436532,-500.0,0.00079999,120]
[343072089,1732325436549,-500.0,0.00079999,120]
[343072090,1732325436564,-500.0,0.00079999,120]
[343072091,1732325436574,-500.0,0.00079999,120]
[343072092,1732325436584,-500.0,0.00079999,120]
[343072093,1732325436594,-500.0,0.00079999,120]
[343072095,1732325436605,-500.0,0.00079999,120]
[343072097,1732325436615,-500.0,0.00079999,120]
[343072099,1732325436625,-500.0,0.00079999,120]
[343072101,1732325436636,-500.0,0.00079999,120]
[343072103,1732325436646,-500.0,0.00079999,120]
[343072105,1732325436655,-500.0,0.00079999,120]
[343072107,1732325436665,-500.0,0.00079999,120]
[343072108,1732325436675,-15423.09187234,0.0008,120]
[343072109,1732325436685,-200.0,0.0008,8]
[343072110,1732325436695,-181241.36542433,0.0008,2]
[343072111,1732325436708,-14488.639364,0.0008,30]
[343072112,1732325436718,-204.225929,0.0008,30]
[343072113,1732325436729,-26553.05515566,0.0008,12]
[343072114,1732325436739,-314298.94,0.0008,30]
[343072115,1732325436750,-2604.6638976,0.0008,120]
[343072116,1732325436758,-34306.56165422,0.0008,120]
[343072117,1732325436768,-10451.89036977,0.0008,2]
[343072118,1732325436777,-330.55023192,0.000801,30]
[343072119,1732325436787,-700.0,0.000802,120]
[343072120,1732325436797,-784.86,0.00080657,2]
[343072121,1732325436808,-500.0,0.00080744,120]
[343072122,1732325436819,-3000.0,0.0008076,120]
[343072123,1732325436829,-634.06,0.00080888,60]
[343072124,1732325436839,-164.36,0.00081265,120]
[343072125,1732325436849,-700.0,0.00081271,120]
[343072126,1732325436859,-1592.45117329,0.0008137,30]
[343072127,1732325436869,-302.34,0.00081471,120]
[343072128,1732325436879,-150.11231,0.00081498,120]
[343072129,1732325436889,-1000.0,0.00081723,120]
[343072130,1732325436899,-1000.0,0.000819,14]
[343072131,1732325436908,-1000.0,0.000819,14]
[343072132,1732325436918,-1000.0,0.000819,14]
[343072133,1732325436928,-1000.0,0.000819,14]
[343072134,1732325436938,-1000.0,0.000819,14]
[343072135,1732325436948,-1000.0,0.000819,14]
[343072136,1732325436961,-1548.0,0.000819,14]
[343072137,1732325436971,-1000.0,0.000819,14]
[343072138,1732325436980,-500.0,0.00081949,120]
[343072139,1732325436993,-150.65,0.00082113,120]
[343072140,1732325437004,-500.0,0.00082191,120]
[343072141,1732325437014,-684.96,0.00082191,120]
[343072142,1732325437023,-684.96,0.00082191,120]
[343072143,1732325437035,-684.96,0.00082191,120]
[343072144,1732325437046,-684.96,0.00082191,120]
[343072145,1732325437055,-1068.1,0.00082191,120]
[343072146,1732325437066,-500.0,0.00082191,120]
[343072147,1732325437076,-500.0,0.00082191,120]
[343072148,1732325437085,-500.0,0.00082191,120]
[343072149,1732325437095,-500.0,0.00082191,120]
[343072150,1732325437105,-500.0,0.00082191,120]
[343072151,1732325437114,-1575.96,0.00082191,120]
[343072152,1732325437124,-500.0,0.00082191,120]
[343072153,1732325437134,-500.0,0.00082191,120]
[343072154,1732325437143,-500.0,0.00082191,120]
[343072155,1732325437152,-762.87,0.00082191,120]
[343072156,1732325437162,-762.87,0.00082191,120]
[343072157,1732325437171,-762.87,0.00082191,120]
[343072158,1732325437181,-762.87,0.00082191,120]
[343072159,1732325437191,-762.87,0.00082191,120]
[343072160,1732325437200,-762.87,0.00082191,120]
[343072161,1732325437212,-762.87,0.00082191,120]
[343072162,1732325437222,-500.0,0.00082191,120]
[343072163,1732325437231,-153.0,0.00082192,120]
[343072164,1732325437241,-153.0,0.00082192,120]
[343072165,1732325437251,-153.0,0.00082192,120]
[343072166,1732325437262,-266.0,0.00082192,120]
[343072167,1732325437271,-266.0,0.00082192,120]
[343072168,1732325437281,-266.0,0.00082192,120]
[343072169,1732325437290,-266.0,0.00082192,120]
[343072170,1732325437300,-266.0,0.00082192,120]
[343072171,1732325437309,-266.0,0.00082192,120]
[343072172,1732325437317,-266.0,0.00082192,120]
[343072173,1732325437328,-266.0,0.00082192,120]
[343072174,1732325437337,-266.0,0.00082192,120]
[343072175,1732325437347,-266.0,0.00082192,120]
[343072176,1732325437356,-266.0,0.00082192,120]
[343072177,1732325437366,-266.0,0.00082192,120]
[343072178,1732325437375,-266.0,0.00082192,120]
[343072179,1732325437385,-266.0,0.00082192,120]
[343072180,1732325437396,-153.0,0.00082192,120]
[343072181,1732325437406,-153.0,0.00082192,120]
[343072182,1732325437416,-153.0,0.00082192,120]
[343072183,1732325437425,-266.0,0.00082192,120]
[343072184,1732325437434,-266.0,0.00082192,120]
[343072185,1732325437444,-266.0,0.00082192,120]
[343072186,1732325437453,-266.0,0.00082192,120]
[343072187,1732325437464,-266.0,0.00082192,120]
[343072188,1732325437474,-266.0,0.00082192,120]
[343072189,1732325437483,-266.0,0.00082192,120]
[343072190,1732325437493,-266.0,0.00082192,120]
[343072191,1732325437503,-266.0,0.00082192,120]
[343072192,1732325437514,-266.0,0.00082192,120]
[343072193,1732325437524,-266.0,0.00082192,120]
[343072194,1732325437533,-266.0,0.00082192,120]
[343072195,1732325437543,-266.0,0.00082192,120]
[343072196,1732325437552,-266.0,0.00082192,120]
[343072197,1732325437561,-153.0,0.00082192,120]
[343072198,1732325437571,-153.0,0.00082192,120]
[343072199,1732325437579,-153.0,0.00082192,120]
[343072200,1732325437588,-153.0,0.00082192,120]
[343072201,1732325437597,-153.0,0.00082192,120]
[343072202,1732325437606,-153.0,0.00082192,120]
[343072203,1732325437616,-153.0,0.00082192,120]
[343072204,1732325437625,-153.0,0.00082192,120]
[343072205,1732325437635,-153.0,0.00082192,120]
[343072206,1732325437644,-153.0,0.00082192,120]
[343072207,1732325437653,-153.0,0.00082192,120]
[343072208,1732325437663,-153.0,0.00082192,120]
[343072209,1732325437672,-153.0,0.00082192,120]
[343072210,1732325437682,-153.0,0.00082192,120]
[343072211,1732325437691,-153.0,0.00082192,120]
[343072212,1732325437700,-153.0,0.00082192,120]
[343072213,1732325437714,-153.0,0.00082192,120]
[343072214,1732325437723,-153.0,0.00082192,120]
[343072215,1732325437732,-153.0,0.00082192,120]
[343072216,1732325437744,-153.0,0.00082192,120]
[343072217,1732325437752,-153.0,0.00082192,120]
[343072218,1732325437761,-153.0,0.00082192,120]
[343072219,1732325437770,-153.0,0.00082192,120]
[343072220,1732325437779,-153.0,0.00082192,120]
[343072221,1732325437788,-153.0,0.00082192,120]
[343072222,1732325437797,-153.0,0.00082192,120]
[343072223,1732325437807,-153.0,0.00082192,120]
[343072224,1732325437816,-153.0,0.00082192,120]
[343072225,1732325437825,-153.0,0.00082192,120]
[343072226,1732325437834,-153.0,0.00082192,120]
[343072227,1732325437843,-153.0,0.00082192,120]
[343072228,1732325437852,-153.0,0.00082192,120]
[343072229,1732325437861,-153.0,0.00082192,120]
[343072230,1732325437871,-153.0,0.00082192,120]
[343072231,1732325437880,-153.0,0.00082192,120]
[343072232,1732325437889,-160.0,0.00082192,120]
[343072233,1732325437899,-160.0,0.00082192,120]
[343072234,1732325437907,-160.0,0.00082192,120]
[343072235,1732325437917,-160.0,0.00082192,120]
[343072236,1732325437926,-160.0,0.00082192,120]
[343072237,1732325437934,-160.0,0.00082192,120]
[343072238,1732325437943,-160.0,0.00082192,120]
[343072239,1732325437952,-160.0,0.00082192,120]
[343072240,1732325437969,-160.0,0.00082192,120]
[343072241,1732325437978,-160.0,0.00082192,120]
[343072242,1732325437989,-160.0,0.00082192,120]
[343072243,1732325437999,-160.0,0.00082192,120]
[343072244,1732325438008,-160.0,0.00082192,120]
[343072245,1732325438019,-160.0,0.00082192,120]
[343072246,1732325438028,-160.0,0.00082192,120]
[343072247,1732325438038,-160.0,0.00082192,120]
[343072248,1732325438047,-160.0,0.00082192,120]
[343072249,1732325438057,-160.0,0.00082192,120]
[343072250,1732325438067,-160.0,0.00082192,120]
[343072251,1732325438076,-160.0,0.00082192,120]
[343072252,1732325438086,-160.0,0.00082192,120]
[343072253,1732325438095,-160.0,0.00082192,120]
[343072254,1732325438105,-160.0,0.00082192,120]
[343072255,1732325438115,-160.0,0.00082192,120]
[343072256,1732325438124,-153.0,0.00082192,120]
[343072257,1732325438134,-153.0,0.00082192,120]
[343072258,1732325438144,-153.0,0.00082192,120]
[343072259,1732325438154,-153.0,0.00082192,120]
[343072260,1732325438164,-153.0,0.00082192,120]
[343072261,1732325438174,-153.0,0.00082192,120]
[343072262,1732325438183,-153.0,0.00082192,120]
[343072263,1732325438193,-153.0,0.00082192,120]
[343072264,1732325438202,-271.0,0.00082192,120]
[343072265,1732325438218,-271.0,0.00082192,120]
[343072266,1732325438227,-271.0,0.00082192,120]
[343072267,1732325438237,-271.0,0.00082192,120]
[343072268,1732325438247,-271.0,0.00082192,120]
[343072269,1732325438257,-271.0,0.00082192,120]
[343072270,1732325438392,-271.0,0.00082192,120]
[343072271,1732325438408,-271.0,0.00082192,120]
[343072272,1732325438418,-271.0,0.00082192,120]
[343072273,1732325438427,-271.0,0.00082192,120]
[343072274,1732325438436,-271.0,0.00082192,120]
[343072275,1732325438446,-271.0,0.00082192,120]
[343072276,1732325438459,-271.0,0.00082192,120]
[343072277,1732325438469,-271.0,0.00082192,120]